Workbook

Sheet 10-Tray
A1: Ethanol-Water Lewis Method
A2: How to write and edit a macro
K3: Instructions: Enter F=100, z=0.4, RB (boilup ratio)=3, D=46.
A4: RB = | B4: 3.0 | D4: Specified or found by iteration | H4: R = | I4: =+G8/E8 -> 2.52 | K4: Run the macro BP (ctl-shift B) repeatedly until no further changes occur.
A5: P (mm Hg) = | B5: 760 | D5: Calculations | K5: Simulation is sensitive to specifications and intial values.
A7: Stage | B7: F (mol) | C7: z (mol B/mol) | D7: Fz (mol B) | E7: D (mol) | F7: xD (mol B/mol) | G7: L (mol) | H7: x (mol B/mol) | I7: V (mol) | J7: y (mol B/mol) | K7: T (oC) | L7: F | M7: gE | N7: gW | O7: KB | P7: KT | Q7: BP/DP
A8: Total Cond | E8: 46.0 | F8: 0.823 | G8: =+G9+I9-B9-I10 -> 116.0 | H8: =+J9 -> 0.824 | K8: 78.1 | L8: =+$E$25/(H8+(1-H8)*$E$25)-$E$26/((1-H8)+H8*$E$26) -> -0.729 | M8: =+EXP(-LN(H8+$E$25*(1-H8))+(1-H8)*L8) -> 1.024 | N8: =+EXP(-LN((1-H8)+$E$26*H8)-H8*L8) -> 2.148 | O8: =M8*10^($B$25-$C$25/($D$25+K8))/$B$5 -> 1.015 | P8: =N8*10^($B$26-$C$26/($D$26+K8))/$B$5 -> 0.928 | Q8: =+H8*O8+(1-H8)*P8-1 -> -0.0004
A9: 1 | D9: =+B9*C9 -> 0 | G9: 116.0 | H9: =+(G10*H10+I10*J10-B10*C10-I11*J11)/G9 -> 0.806 | I9: =+I10 -> 162.0 | J9: =+H9*O9 -> 0.824 | K9: 78.1 | L9: -0.721 | M9: 1.029 | N9: 2.100 | O9: 1.022 | P9: 0.909 | Q9: =+H9*O9+(1-H9)*P9-1 -> -0.0002
A10: 2 | D10: =+B10*C10 -> 0 | G10: 116.0 | H10: 0.788 | I10: 162.0 | J10: 0.811 | K10: 78.1 | L10: -0.713 | M10: 1.035 | N10: 2.052 | O10: 1.029 | P10: 0.890 | Q10: -0.0007
A11: 3 | D11: =+B11*C11 -> 0 | G11: 116.0 | H11: 0.768 | I11: 162.0 | J11: 0.798 | K11: 78.2 | L11: -0.704 | M11: 1.043 | N11: 2.000 | O11: 1.039 | P11: 0.869 | Q11: -0.0002
A12: 4 | D12: 0 | G12: 116.0 | H12: 0.744 | I12: 162.0 | J12: 0.783 | K12: 78.3 | L12: -0.694 | M12: 1.053 | N12: 1.942 | O12: 1.053 | P12: 0.847 | Q12: -0.0000
A13: 5 | D13: =+B13*C13 -> 0 | G13: 116.0 | H13: 0.717 | I13: 162.0 | J13: 0.766 | K13: 78.4 | L13: -0.681 | M13: 1.066 | N13: 1.877 | O13: 1.069 | P13: 0.821 | Q13: -0.0010
A14: 6 | D14: 0 | G14: 116.0 | H14: 0.681 | I14: 162.0 | J14: 0.747 | K14: 78.5 | L14: -0.664 | M14: 1.086 | N14: 1.798 | O14: 1.096 | P14: 0.792 | Q14: -0.0010
A15: 7 | D15: 0 | G15: =+G16+I16-B16-I17 -> 116.0 | H15: =+(G16*H16+I16*J16-B16*C16-I17*J17)/G15 -> 0.632 | I15: 162.0 | J15: 0.722 | K15: 78.8 | L15: -0.640 | M15: 1.120 | N15: 1.696 | O15: 1.141 | P15: 0.754 | Q15: -0.0010
A16: 8 | D16: =+B16*C16 -> 0 | G16: =+G17+I17-B17-I18 -> 116.0 | H16: =+(G17*H17+I17*J17-B17*C17-I18*J18)/G16 -> 0.556 | I16: 162.0 | J16: 0.686 | K16: 79.2 | L16: -0.598 | M16: 1.189 | N16: 1.554 | O16: 1.234 | P16: 0.705 | Q16: -0.0010
A17: 9 | B17: 100 | C17: 0.4 | D17: =+B17*C17 -> 40 | G17: =+G18+I18-B18-I19 -> 216.0 | H17: =+(G18*H18+I18*J18-B18*C18-I19*J19)/G17 -> 0.422 | I17: 162.0 | J17: 0.632 | K17: 80.3 | L17: -0.512 | M17: 1.383 | N17: 1.346 | O17: 1.496 | P17: 0.637 | Q17: -0.0002
A18: 10 | D18: 0 | G18: =+G19+I19 -> 216.0 | H18: =+(I19*J19+G19*H19)/G18 -> 0.231 | I18: =+I19 -> 162.0 | J18: =+H18*O18 -> 0.550 | K18: 82.6 | L18: -0.332 | M18: 2.012 | N18: 1.128 | O18: 2.379 | P18: 0.585 | Q18: -0.0005
A19: Reboiler | G19: =+SUM(B9:B18)-E8 -> 54.0 | H19: =+(SUM(D9:D18)-E8*F8)/G19 -> 0.040 | I19: =+G19*B4 -> 162.0 | J19: =+H19*O19 -> 0.295 | K19: 91.4 | L19: 0.041 | M19: 4.477 | N19: 1.006 | O19: 7.367 | P19: 0.735 | Q19: -0.0000
P20: D = | Q20: =+F8-H8 -> -0.0009
A23: Antoine Constants | E23: Wilson
B24: A | C24: B | D24: C | E24: D
A25: Ethanol | B25: 8.112 | C25: 1592.864 | D25: 226.184 | E25: 0.2002
A26: Water | B26: 7.967 | C26: 1668.210 | D26: 228.000 | E26: 0.8156
A28: Operating Lines | E28: McCabe-Thiele
A29: x | B29: y (TOL) | C29: y (BOL) | E29: x | F29: y
A30: 0 | B30: =+($G$8/$I$9)*A30+($E$8/$I$9)*$F$8 -> 0.2336 | C30: =+($G$18/$I$19)*A30-($G$19/$I$19)*$H$19 -> -0.0133 | E30: =+H8 -> 0.8235 | F30: =+J9 -> 0.8235
A31: 0.1 | B31: =+($G$8/$I$9)*A31+($E$8/$I$9)*$F$8 -> 0.3052 | C31: =+($G$18/$I$19)*A31-($G$19/$I$19)*$H$19 -> 0.1200 | E31: =+H9 -> 0.8061 | F31: =+J9 -> 0.8235
A32: 0.2 | B32: 0.3768 | C32: 0.2533 | E32: =+H9 -> 0.8061 | F32: =+J10 -> 0.8108
A33: 0.3 | B33: 0.4484 | C33: 0.3867 | E33: =+H10 -> 0.7881 | F33: =+J10 -> 0.8108
A34: 0.4 | B34: 0.5200 | C34: 0.5200 | E34: =+H10 -> 0.7881 | F34: =+J11 -> 0.7979
A35: 0.5 | B35: 0.5916 | C35: 0.6533 | E35: =+H11 -> 0.7677 | F35: =+J11 -> 0.7979
A36: 0.6 | B36: 0.6632 | C36: 0.7867 | E36: =+H11 -> 0.7677 | F36: =+J12 -> 0.7833
A37: 0.7 | B37: 0.7348 | C37: 0.9200 | E37: =+H12 -> 0.7441 | F37: =+J12 -> 0.7833
A38: 0.8 | B38: 0.8064 | C38: 1.0533 | E38: =+H12 -> 0.7441 | F38: =+J13 -> 0.7664
A39: 0.9 | B39: 0.8780 | C39: 1.1867 | E39: =+H13 -> 0.7168 | F39: =+J13 -> 0.7664
A40: 1 | B40: 0.9496 | C40: 1.3200 | E40: =+H13 -> 0.7168 | F40: =+J14 -> 0.7468
E41: =+H14 -> 0.6815 | F41: =+J14 -> 0.7468
A42: Feed Line | B42: x | C42: y | E42: =+H14 -> 0.6815 | F42: =+J15 -> 0.7215
B43: =+SUM(C9:C18) -> 0.4 | C43: 0 | E43: =+H15 -> 0.6322 | F43: =+J15 -> 0.7215
B44: =+SUM(C9:C18) -> 0.4 | C44: 1 | E44: =+H15 -> 0.6322 | F44: =+J16 -> 0.6862
E45: =+H16 -> 0.5561 | F45: =+J16 -> 0.6862
A46: 45o Line | B46: x | C46: y | E46: =+H16 -> 0.5561 | F46: =+J17 -> 0.6318
B47: 0 | C47: 0 | E47: =+H17 -> 0.4223 | F47: =+J17 -> 0.6318
B48: 1 | C48: 1 | E48: =+H17 -> 0.4223 | F48: =+J18 -> 0.5497
E49: =+H18 -> 0.2311 | F49: =+J18 -> 0.5497
E50: =+H18 -> 0.2311 | F50: =+J19 -> 0.2947
E51: =+H19 -> 0.0400 | F51: =+J19 -> 0.2947
E52: =+H19 -> 0.0400 | F52: =+E52 -> 0.0400

Sheet VLE
A1: Ethanol-Water VLE
H2: P (mm Hg) = | I2: 760 | K2: Antoine Constants
A3: x | B3: y | C3: T | D3: Wilson Equation | G3: pB | H3: pT | I3: BP | L3: A | M3: B | N3: C | O3: D
A4: (mol B/mol) | B4: (mol B/mol) | C4: (oC) | D4: F | E4: gE | F4: gW | G4: (mm Hg) | H4: (mm Hg) | I4: (mm Hg) | K4: Ethanol | L4: 8.112 | M4: 1592.864 | N4: 226.184 | O4: 0.2002
A5: 0.00 | B5: =+A5*G5*E5/760 -> 0.000 | C5: 100.0 | D5: =+$O$4/(A5+(1-A5)*$O$4)-$O$5/((1-A5)+A5*$O$5) -> 0.1844 | E5: =+EXP(-LN(A5+$O$4*(1-A5))+(1-A5)*D5) -> 6.006 | F5: =+EXP(-LN((1-A5)+$O$5*A5)-A5*D5) -> 1.000 | G5: =10^($L$4-$M$4/(C5+$N$4)) -> 1694 | H5: =10^($L$5-$M$5/($N$5+C5)) -> 760 | I5: =$I$2-A5*G5*E5-(1-A5)*H5*F5 -> 0.00000 | K5: Water | L5: 7.967 | M5: 1668.210 | N5: 228.000 | O5: 0.8156
A6: 0.01 | B6: =+A6*G6*E6/760 -> 0.111 | C6: 97.0 | D6: =+$O$4/(A6+(1-A6)*$O$4)-$O$5/((1-A6)+A6*$O$5) -> 0.1444 | E6: =+EXP(-LN(A6+$O$4*(1-A6))+(1-A6)*D6) -> 5.541 | F6: =+EXP(-LN((1-A6)+$O$5*A6)-A6*D6) -> 1.000 | G6: =10^($L$4-$M$4/(C6+$N$4)) -> 1526 | H6: =10^($L$5-$M$5/($N$5+C6)) -> 682 | I6: =$I$2-A6*G6*E6-(1-A6)*H6*F6 -> 0.00000
A7: 0.02 | B7: 0.190 | C7: 94.7 | D7: 0.1074 | E7: 5.138 | F7: =+EXP(-LN((1-A7)+$O$5*A7)-A7*D7) -> 1.002 | G7: =10^($L$4-$M$4/(C7+$N$4)) -> 1407 | H7: =10^($L$5-$M$5/($N$5+C7)) -> 627 | I7: 0.00000 | K7: Instructions: | L7: 1) Select the pressure. Most examples are for 1 atm = 760 mm Hg.
A8: 0.03 | B8: 0.249 | C8: 92.9 | D8: 0.0728 | E8: 4.786 | F8: 1.003 | G8: 1319 | H8: 586 | I8: 0.00000 | L8: 2) Run Solver to make the BP criteria equal to zero. The cell contains
A9: 0.04 | B9: 0.295 | C9: 91.4 | D9: 0.0405 | E9: 4.477 | F9: 1.006 | G9: 1251 | H9: 555 | I9: 0.00000 | L9: P - pE xE gE - pW (1-xE) gW.
A10: 0.05 | B10: 0.331 | C10: 90.2 | D10: 0.0103 | E10: 4.204 | F10: 1.009 | G10: 1197 | H10: 530 | I10: 0.00000 | L10: 3) The following are set and don't need to be changed:
A11: 0.06 | B11: 0.361 | C11: 89.2 | D11: -0.0181 | E11: 3.961 | F11: 1.012 | G11: 1154 | H11: 511 | I11: 0.00000 | L11: x is set from 0 to 1 by 0.01.
A12: 0.07 | B12: 0.385 | C12: 88.4 | D12: -0.0448 | E12: 3.744 | F12: 1.016 | G12: 1118 | H12: 494 | I12: 0.00000 | L12: yE = pE xEgE/P
A13: 0.08 | B13: 0.406 | C13: 87.6 | D13: -0.0700 | E13: 3.549 | F13: 1.021 | G13: 1088 | H13: 480 | I13: 0.00000 | L13: T is found by iteration of BP
A14: 0.09 | B14: 0.424 | C14: 87.0 | D14: -0.0938 | E14: 3.373 | F14: 1.025 | G14: 1062 | H14: 469 | I14: 0.00000 | L14: pB and pT are the partial pressures at T using Antoine's Eq.
A15: 0.10 | B15: 0.440 | C15: 86.4 | D15: -0.1164 | E15: 3.214 | F15: 1.031 | G15: 1040 | H15: 459 | I15: 0.00000 | L15: 4) If you change pressure, you will need to adjust T axis on TXY VLE.
A16: 0.11 | B16: 0.454 | C16: 86.0 | D16: -0.1378 | E16: 3.069 | F16: 1.036 | G16: 1021 | H16: 450 | I16: -0.00000
A17: 0.12 | B17: 0.466 | C17: 85.5 | D17: -0.1581 | E17: 2.938 | F17: 1.042 | G17: 1005 | H17: 442 | I17: 0.00000
A18: 0.13 | B18: 0.477 | C18: 85.1 | D18: -0.1775 | E18: 2.817 | F18: 1.048 | G18: 990 | H18: 436 | I18: 0.00000
A19: 0.14 | B19: 0.487 | C19: 84.8 | D19: -0.1959 | E19: 2.707 | F19: 1.055 | G19: 977 | H19: 430 | I19: 0.00000
A20: 0.15 | B20: 0.496 | C20: 84.5 | D20: -0.2135 | E20: 2.605 | F20: 1.062 | G20: 965 | H20: 424 | I20: 0.00000
A21: 0.16 | B21: 0.504 | C21: 84.2 | D21: -0.2303 | E21: 2.511 | F21: 1.069 | G21: 954 | H21: 419 | I21: -0.00000
A22: 0.17 | B22: 0.512 | C22: 83.9 | D22: -0.2465 | E22: 2.424 | F22: 1.077 | G22: 944 | H22: 415 | I22: 0.00000
A23: 0.18 | B23: 0.519 | C23: 83.6 | D23: -0.2619 | E23: 2.344 | F23: 1.084 | G23: 935 | H23: 411 | I23: 0.00000
A24: 0.19 | B24: 0.526 | C24: 83.4 | D24: -0.2767 | E24: 2.269 | F24: 1.092 | G24: 927 | H24: 407 | I24: -0.00000
A25: 0.20 | B25: 0.532 | C25: 83.2 | D25: -0.2910 | E25: 2.200 | F25: 1.100 | G25: 920 | H25: 404 | I25: 0.00000
A26: 0.21 | B26: 0.538 | C26: 83.0 | D26: -0.3047 | E26: 2.135 | F26: 1.109 | G26: 912 | H26: 401 | I26: 0.00000
A27: 0.22 | B27: 0.544 | C27: 82.8 | D27: -0.3179 | E27: 2.075 | F27: 1.118 | G27: 906 | H27: 398 | I27: 0.00000
A28: 0.23 | B28: 0.549 | C28: 82.6 | D28: -0.3306 | E28: 2.018 | F28: 1.127 | G28: 900 | H28: 395 | I28: 0.00000
A29: 0.24 | B29: 0.555 | C29: 82.5 | D29: -0.3429 | E29: 1.965 | F29: 1.136 | G29: 894 | H29: 392 | I29: 0.00000
A30: 0.25 | B30: 0.560 | C30: 82.3 | D30: -0.3547 | E30: 1.915 | F30: 1.146 | G30: 888 | H30: 390 | I30: 0.00000
A31: 0.26 | B31: 0.564 | C31: 82.1 | D31: -0.3662 | E31: 1.868 | F31: 1.155 | G31: 883 | H31: 387 | I31: 0.00000
A32: 0.27 | B32: 0.569 | C32: 82.0 | D32: -0.3773 | E32: 1.824 | F32: 1.165 | G32: 878 | H32: 385 | I32: 0.00000
A33: 0.28 | B33: 0.574 | C33: 81.9 | D33: -0.3880 | E33: 1.783 | F33: 1.175 | G33: 873 | H33: 383 | I33: 0.00000
A34: 0.29 | B34: 0.578 | C34: 81.7 | D34: -0.3984 | E34: 1.744 | F34: 1.186 | G34: 869 | H34: 381 | I34: 0.00000
A35: 0.30 | B35: 0.583 | C35: 81.6 | D35: -0.4085 | E35: 1.707 | F35: 1.197 | G35: 865 | H35: 379 | I35: 0.00000
A36: 0.31 | B36: 0.587 | C36: 81.5 | D36: -0.4183 | E36: 1.672 | F36: 1.207 | G36: 860 | H36: 377 | I36: 0.00000
A37: 0.32 | B37: 0.591 | C37: 81.3 | D37: -0.4278 | E37: 1.639 | F37: 1.219 | G37: 856 | H37: 375 | I37: 0.00000
A38: 0.33 | B38: 0.595 | C38: 81.2 | D38: -0.4371 | E38: 1.608 | F38: 1.230 | G38: 853 | H38: 373 | I38: 0.00000
A39: 0.34 | B39: 0.599 | C39: 81.1 | D39: -0.4461 | E39: 1.578 | F39: 1.242 | G39: 849 | H39: 372 | I39: 0.00000
A40: 0.35 | B40: 0.603 | C40: 81.0 | D40: -0.4549 | E40: 1.550 | F40: 1.253 | G40: 845 | H40: 370 | I40: 0.00000
A41: 0.36 | B41: 0.607 | C41: 80.9 | D41: -0.4635 | E41: 1.523 | F41: 1.266 | G41: 842 | H41: 369 | I41: 0.00000
A42: 0.37 | B42: 0.611 | C42: 80.8 | D42: -0.4718 | E42: 1.497 | F42: 1.278 | G42: 839 | H42: 367 | I42: 0.00000
A43: 0.38 | B43: 0.615 | C43: 80.7 | D43: -0.4799 | E43: 1.473 | F43: 1.290 | G43: 835 | H43: 366 | I43: 0.00000
A44: 0.39 | B44: 0.619 | C44: 80.6 | D44: -0.4879 | E44: 1.450 | F44: 1.303 | G44: 832 | H44: 364 | I44: 0.00000
A45: 0.40 | B45: 0.623 | C45: 80.5 | D45: -0.4956 | E45: 1.428 | F45: 1.316 | G45: 829 | H45: 363 | I45: 0.00000
A46: 0.41 | B46: 0.627 | C46: 80.4 | D46: -0.5032 | E46: 1.407 | F46: 1.330 | G46: 826 | H46: 361 | I46: 0.00000
A47: 0.42 | B47: 0.631 | C47: 80.3 | D47: -0.5106 | E47: 1.387 | F47: 1.343 | G47: 823 | H47: 360 | I47: 0.00000
A48: 0.43 | B48: 0.635 | C48: 80.2 | D48: -0.5179 | E48: 1.368 | F48: 1.357 | G48: 820 | H48: 359 | I48: 0.00000
A49: 0.44 | B49: 0.639 | C49: 80.2 | D49: -0.5250 | E49: 1.350 | F49: 1.371 | G49: 818 | H49: 357 | I49: 0.00000
A50: 0.45 | B50: 0.643 | C50: 80.1 | D50: -0.5320 | E50: 1.332 | F50: 1.385 | G50: 815 | H50: 356 | I50: 0.00000
A51: 0.46 | B51: 0.647 | C51: 80.0 | D51: -0.5388 | E51: 1.316 | F51: 1.400 | G51: 812 | H51: 355 | I51: 0.00000
A52: 0.47 | B52: 0.651 | C52: 79.9 | D52: -0.5455 | E52: 1.300 | F52: 1.415 | G52: 810 | H52: 354 | I52: 0.00000
A53: 0.48 | B53: 0.655 | C53: 79.8 | D53: -0.5521 | E53: 1.285 | F53: 1.430 | G53: 807 | H53: 353 | I53: 0.00000
A54: 0.49 | B54: 0.659 | C54: 79.7 | D54: -0.5585 | E54: 1.270 | F54: 1.445 | G54: 805 | H54: 352 | I54: 0.00000
A55: 0.50 | B55: 0.663 | C55: 79.7 | D55: -0.5648 | E55: 1.256 | F55: 1.461 | G55: 802 | H55: 351 | I55: 0.00000
A56: 0.51 | B56: 0.667 | C56: 79.6 | D56: -0.5710 | E56: 1.243 | F56: 1.477 | G56: 800 | H56: 349 | I56: 0.00000
A57: 0.52 | B57: 0.671 | C57: 79.5 | D57: -0.5771 | E57: 1.230 | F57: 1.493 | G57: 798 | H57: 348 | I57: 0.00000
A58: 0.53 | B58: 0.676 | C58: 79.5 | D58: -0.5832 | E58: 1.218 | F58: 1.510 | G58: 795 | H58: 347 | I58: -0.00000
A59: 0.54 | B59: 0.680 | C59: 79.4 | D59: -0.5891 | E59: 1.207 | F59: 1.526 | G59: 793 | H59: 346 | I59: 0.00000
A60: 0.55 | B60: 0.684 | C60: 79.3 | D60: -0.5949 | E60: 1.195 | F60: 1.544 | G60: 791 | H60: 345 | I60: 0.00000
A61: 0.56 | B61: 0.689 | C61: 79.2 | D61: -0.6006 | E61: 1.185 | F61: 1.561 | G61: 789 | H61: 345 | I61: 0.00000
A62: 0.57 | B62: 0.693 | C62: 79.2 | D62: -0.6062 | E62: 1.174 | F62: 1.579 | G62: 787 | H62: 344 | I62: 0.00000
A63: 0.58 | B63: 0.698 | C63: 79.1 | D63: -0.6118 | E63: 1.165 | F63: 1.597 | G63: 785 | H63: 343 | I63: -0.00000
A64: 0.59 | B64: 0.702 | C64: 79.1 | D64: -0.6173 | E64: 1.155 | F64: 1.615 | G64: 783 | H64: 342 | I64: 0.00000
A65: 0.60 | B65: 0.707 | C65: 79.0 | D65: -0.6227 | E65: 1.146 | F65: 1.634 | G65: 781 | H65: 341 | I65: 0.00000
A66: 0.61 | B66: 0.712 | C66: 78.9 | D66: -0.6280 | E66: 1.138 | F66: 1.653 | G66: 779 | H66: 340 | I66: 0.00000
A67: 0.62 | B67: 0.716 | C67: 78.9 | D67: -0.6333 | E67: 1.129 | F67: 1.672 | G67: 777 | H67: 339 | I67: 0.00000
A68: 0.63 | B68: 0.721 | C68: 78.8 | D68: -0.6385 | E68: 1.121 | F68: 1.692 | G68: 776 | H68: 339 | I68: -0.00000
A69: 0.64 | B69: 0.726 | C69: 78.8 | D69: -0.6436 | E69: 1.114 | F69: 1.712 | G69: 774 | H69: 338 | I69: 0.00000
A70: 0.65 | B70: =+A70*G70*E70/760 -> 0.731 | C70: 78.7 | D70: =+$O$4/(A70+(1-A70)*$O$4)-$O$5/((1-A70)+A70*$O$5) -> -0.6486 | E70: =+EXP(-LN(A70+$O$4*(1-A70))+(1-A70)*D70) -> 1.107 | F70: 1.732 | G70: 772 | H70: 337 | I70: =$I$2-A70*G70*E70-(1-A70)*H70*F70 -> -0.00000
A71: 0.66 | B71: 0.736 | C71: 78.7 | D71: -0.6536 | E71: 1.100 | F71: =+EXP(-LN((1-A71)+$O$5*A71)-A71*D71) -> 1.753 | G71: =10^($L$4-$M$4/(C71+$N$4)) -> 771 | H71: =10^($L$5-$M$5/($N$5+C71)) -> 336 | I71: 0.00000
A72: 0.67 | B72: 0.741 | C72: 78.6 | D72: -0.6586 | E72: 1.093 | F72: 1.774 | G72: 769 | H72: 336 | I72: 0.00000
A73: 0.68 | B73: 0.747 | C73: 78.6 | D73: -0.6635 | E73: 1.087 | F73: 1.795 | G73: 768 | H73: 335 | I73: 0.00000
A74: 0.69 | B74: 0.752 | C74: 78.5 | D74: -0.6683 | E74: 1.081 | F74: 1.817 | G74: 766 | H74: 334 | I74: 0.00000
A75: 0.70 | B75: 0.758 | C75: 78.5 | D75: -0.6731 | E75: 1.075 | F75: 1.839 | G75: 765 | H75: 334 | I75: 0.00000
A76: 0.71 | B76: 0.763 | C76: 78.4 | D76: -0.6778 | E76: 1.070 | F76: 1.862 | G76: 764 | H76: 333 | I76: 0.00000
A77: 0.72 | B77: 0.769 | C77: 78.4 | D77: -0.6825 | E77: 1.064 | F77: 1.885 | G77: 763 | H77: 333 | I77: 0.00000
A78: 0.73 | B78: 0.775 | C78: 78.3 | D78: -0.6871 | E78: 1.059 | F78: 1.908 | G78: 761 | H78: 332 | I78: -0.00000
A79: 0.74 | B79: 0.781 | C79: 78.3 | D79: -0.6917 | E79: 1.055 | F79: 1.932 | G79: 760 | H79: 332 | I79: 0.00000
A80: 0.75 | B80: 0.787 | C80: 78.3 | D80: -0.6963 | E80: 1.050 | F80: 1.956 | G80: 759 | H80: 331 | I80: 0.00000
A81: 0.76 | B81: 0.793 | C81: 78.2 | D81: -0.7008 | E81: 1.046 | F81: 1.981 | G81: 758 | H81: 331 | I81: 0.00000
A82: 0.77 | B82: 0.799 | C82: 78.2 | D82: -0.7052 | E82: 1.042 | F82: 2.006 | G82: 757 | H82: 330 | I82: 0.00000
A83: 0.78 | B83: 0.806 | C83: 78.2 | D83: -0.7097 | E83: 1.038 | F83: 2.032 | G83: 757 | H83: 330 | I83: 0.00000
A84: 0.79 | B84: 0.813 | C84: 78.2 | D84: -0.7140 | E84: 1.034 | F84: 2.058 | G84: 756 | H84: 330 | I84: 0.00000
A85: 0.80 | B85: 0.819 | C85: 78.1 | D85: -0.7184 | E85: 1.031 | F85: 2.084 | G85: 755 | H85: 329 | I85: 0.00000
A86: 0.81 | B86: 0.826 | C86: 78.1 | D86: -0.7227 | E86: 1.028 | F86: 2.111 | G86: 754 | H86: 329 | I86: 0.00000
A87: 0.82 | B87: 0.834 | C87: 78.1 | D87: -0.7270 | E87: 1.025 | F87: 2.138 | G87: 754 | H87: 329 | I87: -0.00000
A88: 0.83 | B88: 0.841 | C88: 78.1 | D88: -0.7313 | E88: 1.022 | F88: 2.166 | G88: 753 | H88: 328 | I88: 0.00000
A89: 0.84 | B89: 0.848 | C89: 78.1 | D89: -0.7355 | E89: 1.019 | F89: 2.195 | G89: 753 | H89: 328 | I89: 0.00000
A90: 0.85 | B90: 0.856 | C90: 78.1 | D90: -0.7397 | E90: 1.017 | F90: 2.224 | G90: 753 | H90: 328 | I90: -0.00000
A91: 0.86 | B91: 0.864 | C91: 78.0 | D91: -0.7439 | E91: 1.015 | F91: 2.253 | G91: 752 | H91: 328 | I91: -0.00000
A92: 0.87 | B92: 0.872 | C92: 78.0 | D92: -0.7480 | E92: 1.013 | F92: 2.283 | G92: 752 | H92: 328 | I92: -0.00000
A93: 0.88 | B93: 0.880 | C93: 78.0 | D93: -0.7521 | E93: 1.011 | F93: 2.314 | G93: 752 | H93: 328 | I93: -0.00000
A94: 0.89 | B94: 0.889 | C94: 78.0 | D94: -0.7562 | E94: 1.009 | F94: 2.345 | G94: 752 | H94: 328 | I94: -0.00000
A95: 0.90 | B95: 0.897 | C95: 78.0 | D95: -0.7603 | E95: 1.007 | F95: 2.377 | G95: 752 | H95: 328 | I95: -0.00000
A96: 0.91 | B96: 0.906 | C96: 78.0 | D96: -0.7643 | E96: 1.006 | F96: 2.409 | G96: 753 | H96: 328 | I96: 0.00000
A97: 0.92 | B97: 0.916 | C97: 78.1 | D97: -0.7683 | E97: 1.005 | F97: 2.442 | G97: 753 | H97: 328 | I97: -0.00000
A98: 0.93 | B98: 0.925 | C98: 78.1 | D98: -0.7723 | E98: 1.004 | F98: 2.475 | G98: 753 | H98: 328 | I98: -0.00000
A99: 0.94 | B99: 0.935 | C99: 78.1 | D99: -0.7763 | E99: 1.003 | F99: 2.509 | G99: 754 | H99: 329 | I99: 0.00000
A100: 0.95 | B100: 0.945 | C100: 78.1 | D100: -0.7803 | E100: 1.002 | F100: 2.544 | G100: 755 | H100: 329 | I100: 0.00000
A101: 0.96 | B101: 0.955 | C101: 78.1 | D101: -0.7842 | E101: 1.001 | F101: 2.580 | G101: 755 | H101: 329 | I101: 0.00000
A102: 0.97 | B102: 0.966 | C102: 78.2 | D102: -0.7881 | E102: 1.001 | F102: 2.616 | G102: 756 | H102: 330 | I102: 0.00000
A103: 0.98 | B103: 0.977 | C103: 78.2 | D103: -0.7920 | E103: 1.000 | F103: 2.652 | G103: 757 | H103: 330 | I103: -0.00000
A104: 0.99 | B104: 0.988 | C104: 78.3 | D104: -0.7959 | E104: 1.000 | F104: 2.690 | G104: 759 | H104: 331 | I104: -0.00000
A105: 1.00 | B105: 1.000 | C105: 78.3 | D105: -0.7998 | E105: 1.000 | F105: 2.728 | G105: 760 | H105: 331 | I105: -0.00000
